[Event "WYCC 2018 G18"]
[Site "Halkidiki"]
[Date "2018.10.29"]
[Round "10"]
[White "Zairbek kyzy, Begimay"]
[Black "Limanovska, Elizabete"]
[Result "1-0"]
[ECO "B22"]
[WhiteElo "1919"]
[BlackElo "2072"]
[Annotator "NA"]
[PlyCount "119"]
[EventDate "2018.10.20"]
[EventType "swiss"]
[EventCountry "GRE"]
[SourceTitle "playchess.com"]
[Source "ChessBase"]
[SourceQuality "1"]
[TimeControl "40/5400+30:1800+30"]

1. e4 {[%emt 0:00:00]} c5 {[%emt 0:00:00]} 2. c3 {[%emt 0:00:00]} Nf6 {[%emt 0:00:00]} 3. e5 {[%emt 0:00:00]} Nd5 {[%emt 0:00:00]} 4. d4 {[%emt 0:00:00]} cxd4 {[%emt 0:00:00]} 5. cxd4 {[%emt 0:00:01] LiveBook: 1377 Partien} d6 {[%emt 0:00:13]} 6. f4 {[%emt 0:00:57]} Nc6 {[%emt 0:09:14] B22: Sicilian: 2 c3} 7. Nf3 {[%emt 0:00:47]} e6 {[%emt 0:04:09]} 8. Nc3 {[%emt 0:00:41]} Nxc3 {[%emt 0:08:47]} 9. bxc3 {[%emt 0:00:09]} Be7 {[%emt 0:00:12]} 10. Bd3 {[%emt 0:00:34]} b6 {[%emt 0:09:01]} 11. O-O {[%emt 0:01:08]} Bb7 {[%emt 0:01:40]} 12. Qc2 $146 {[%emt 0:06:39]} ({Predecessor:} 12. f5 exf5 13. Bxf5 dxe5 14. d5 Bc5+ 15. Kh1 {0-1 (38) Sveshnikov,V (2377)-Kovalenko,I (2636) Olaine 2017}) 12... g6 {[%emt 0:06:05]} 13. Be3 {[%emt 0:03:28]} Rc8 {[%emt 0:00:49]} 14. a3 {[%emt 0:04:03]} O-O {[%emt 0:09:06]} 15. f5 {[%emt 0:04:15]} (15. d5 $11 exd5 16. e6) 15... exf5 {[%emt 0:00:35]} 16. Bxf5 {[%emt 0:01:41]} Rc7 {[%emt 0:07:33]} ({Better is} 16... gxf5 $17 17. Qxf5 dxe5 18. dxe5 Rc7) 17. Bh6 {[%emt 0:04:46]} dxe5 {[%emt 0:10:06]} 18. Bxf8 {[%emt 0:00:46]} Bxf8 {[%emt 0:01:16]} 19. Be4 $17 {[%emt 0:03:40]} Nxd4 {[%emt 0:02:19]} 20. Nxd4 {[%emt 0:01:59]} exd4 {[%emt 0:01:14]} 21. Bxb7 {[%emt 0:01:13]} Rxb7 {[%emt 0:00:48]} 22. cxd4 {[%emt 0:01:46]} Qxd4+ {[%emt 0:00:35]} 23. Kh1 {[%emt 0:00:05]} Rd7 {[%emt 0:05:10]} 24. Qe2 {[%emt 0:11:21]} Qd3 {[%emt 0:05:10]} 25. Qa2 {[%emt 0:02:10]} Bc5 {[%emt 0:01:40]} 26. h3 {[%emt 0:02:16]} Qg3 {[%emt 0:02:25]} 27. Rf3 {[%emt 0:02:25]} Qe5 {[%emt 0:00:19]} 28. Raf1 {[%emt 0:04:43]} Bd6 {[%emt 0:00:41]} 29. g3 {[%emt 0:00:32]} Qe8 {[%emt 0:00:44]} 30. a4 {[%emt 0:06:28]} Kg7 {[%emt 0:00:19]} 31. Kg2 {[%emt 0:03:11]} Re7 {[%emt 0:03:38]} 32. Qb2+ {[%emt 0:04:49]} Be5 {[%emt 0:00:16]} 33. Qb5 {[%emt 0:00:14]} f5 {[%emt 0:02:51]} 34. Re1 {[%emt 0:04:05]} Qxb5 {[%emt 0:00:38]} 35. axb5 {[%emt 0:00:07]} Kf6 {[%emt 0:00:08]} 36. Rfe3 {[%emt 0:01:04]} g5 {[%emt 0:02:47]} 37. Rc1 {[%emt 0:00:59]} Rd7 {[%emt 0:01:59]} 38. Rc6+ {[%emt 0:00:23]} Rd6 {[%emt 0:00:06]} 39. Rxd6+ {[%emt 0:01:37]} Bxd6 {[%emt 0:00:05]} 40. Re8 {[%emt 0:00:00]} h5 {[%emt 0:00:00]} 41. Rh8 {[%emt 0:02:03]} Kg6 {[%emt 0:03:29]} 42. Ra8 {[%emt 0:00:12]} f4 {[%emt 0:06:47]} 43. Rxa7 {[%emt 0:01:43]} fxg3 {[%emt 0:03:24]} 44. Rb7 {[%emt 0:00:20]} Bc5 {[%emt 0:00:03]} 45. Kxg3 {[%emt 0:00:05]} Kf5 {[%emt 0:00:23]} 46. Rh7 {[%emt 0:00:27]} Bd6+ {[%emt 0:04:55]} 47. Kg2 {[%emt 0:00:50]} Kg6 {[%emt 0:00:37]} 48. Rb7 {[%emt 0:00:37]} Bc5 {[%emt 0:00:05]} 49. Rc7 {[%emt 0:00:19]} Bd4 {[%emt 0:02:52]} 50. Rc6+ {[%emt 0:01:24]} Kf5 {[%emt 0:00:25]} 51. Rh6 {[%emt 0:00:27]} h4 {[%emt 0:01:12]} 52. Kf3 {[%emt 0:00:06]} Bc5 {[%emt 0:05:17]} 53. Rh8 {[%emt 0:03:27]} Bb4 {[%emt 0:03:04]} 54. Rd8 {[%emt 0:02:23]} Ke5 {[%emt 0:00:49]} 55. Rd3 {[%emt 0:02:45]} Bc5 {[%emt 0:03:04]} 56. Kg4 {[%emt 0:01:28]} Ke4 {[%emt 0:00:08]} 57. Rd7 {[%emt 0:01:27]} Be3 {[%emt 0:00:10]} 58. Rd1 {[%emt 0:06:07]} Bf4 {[%emt 0:01:07]} 59. Rd7 {[%emt 0:02:32]} Be3 {[%emt 0:03:09]} 60. Re7+ {[%emt 0:01:29]} 1-0

[Event "WYCC 2018 G18"]
[Site "Halkidiki"]
[Date "2018.10.29"]
[Round "10"]
[White "Kieu, Bich Thuy"]
[Black "Cvitan, Ena"]
[Result "1/2-1/2"]
[ECO "D31"]
[WhiteElo "1913"]
[BlackElo "2034"]
[Annotator "NA"]
[PlyCount "42"]
[EventDate "2018.10.20"]
[EventType "swiss"]
[EventCountry "GRE"]
[SourceTitle "playchess.com"]
[Source "ChessBase"]
[SourceQuality "1"]
[TimeControl "40/5400+30:1800+30"]

1. d4 {[%emt 0:00:00]} d5 {[%emt 0:00:00]} 2. c4 {[%emt 0:00:00]} e6 {[%emt 0:00:00]} 3. Nc3 {[%emt 0:00:00]} a6 {[%emt 0:00:00]} 4. Nf3 {[%emt 0:03:00]} dxc4 {[%emt 0:00:16]} 5. a4 {[%emt 0:01:38]} Nc6 {[%emt 0:00:08]} 6. e3 {[%emt 0:00:58]} Na5 {[%emt 0:00:19]} 7. Nd2 {[%emt 0:03:28]} Nf6 {[%emt 0:03:54]} 8. Nxc4 {[%emt 0:01:42]} c5 {[%emt 0:05:37]} 9. Be2 {[%emt 0:09:58]} Nxc4 {[%emt 0:04:28]} 10. Bxc4 {[%emt 0:00:11]} cxd4 {[%emt 0:01:17]} 11. exd4 {[%emt 0:00:47]} Be7 {[%emt 0:06:14]} 12. O-O {[%emt 0:01:02]} O-O {[%emt 0:00:10]} 13. Be3 {[%emt 0:08:18]} Bd7 {[%emt 0:08:28]} 14. d5 {[%emt 0:06:59]} Qc7 {[%emt 0:03:48]} 15. Qe2 {[%emt 0:06:45]} Rac8 {[%emt 0:10:53]} 16. Bb3 {[%emt 0:10:41]} exd5 {[%emt 0:09:39]} 17. Nxd5 {[%emt 0:01:38]} Nxd5 {[%emt 0:00:06]} 18. Bxd5 {[%emt 0:00:05]} Bc6 {[%emt 0:00:35]} 19. Rac1 {[%emt 0:06:27]} Qd7 {[%emt 0:03:06]} 20. Bxc6 {[%emt 0:01:20]} Rxc6 {[%emt 0:00:14]} 21. Rxc6 {[%emt 0:09:47]} Qxc6 {[%emt 0:00:23]} 1/2-1/2

[Event "WYCC 2018 G18"]
[Site "Halkidiki"]
[Date "2018.10.29"]
[Round "10"]
[White "Tsivelekidou, Evgenia"]
[Black "Ramirez Toledo, Ayleen Maribel"]
[Result "1-0"]
[ECO "A48"]
[WhiteElo "1891"]
[BlackElo "1545"]
[Annotator "NA"]
[PlyCount "85"]
[EventDate "2018.10.20"]
[EventType "swiss"]
[EventCountry "GRE"]
[SourceTitle "playchess.com"]
[Source "ChessBase"]
[SourceQuality "1"]
[TimeControl "40/5400+30:1800+30"]

1. d4 {[%emt 0:00:00]} Nf6 {[%emt 0:00:00]} 2. Nf3 {[%emt 0:00:00]} g6 {[%emt 0:00:00]} 3. Bg5 {[%emt 0:00:00]} Bg7 {[%emt 0:00:00]} 4. Nbd2 {[%emt 0:00:00]} O-O $11 {[%emt 0:00:04] LiveBook: 1985 Games} 5. c3 {[%emt 0:00:00]} d6 {[%emt 0:00:19]} 6. e4 {[%emt 0:00:13]} Nbd7 {[%emt 0:00:16]} 7. Be2 {[%emt 0:00:19]} Qe8 {[%emt 0:02:12]} 8. O-O {[%emt 0:01:44]} e5 {[%emt 0:01:41]} 9. dxe5 {[%emt 0:03:10]} dxe5 {[%emt 0:00:06]} 10. Qc2 {[%emt 0:01:17]} h6 {[%emt 0:00:36]} 11. Bh4 {[%emt 0:00:46]} Nh5 {[%emt 0:07:55]} 12. Rfe1 {[%emt 0:02:41]} Nf4 {[%emt 0:01:58]} 13. Bf1 {[%emt 0:00:49]} b6 {[%emt 0:05:10]} 14. a4 {[%emt 0:03:39]} a5 {[%emt 0:01:00]} 15. b4 {[%emt 0:04:06]} Bb7 {[%emt 0:05:33]} 16. Nc4 {[%emt 0:04:00]} Qe6 {[%emt 0:11:48]} 17. Nfd2 {[%emt 0:04:48]} g5 {[%emt 0:14:25]} 18. Bg3 {[%emt 0:00:06]} h5 {[%emt 0:02:48]} 19. Ne3 {[%emt 0:08:00]} Qg6 {[%emt 0:07:33]} 20. Nf5 {[%emt 0:05:31]} Bf6 {[%emt 0:05:52]} 21. Rad1 {[%emt 0:12:05]} Kh8 {[%emt 0:04:11]} 22. Nc4 {[%emt 0:04:19]} Rfd8 {[%emt 0:04:48]} 23. f3 {[%emt 0:07:42]} Ba6 {[%emt 0:16:39]} 24. Nce3 {[%emt 0:02:09]} Bb7 {[%emt 0:00:44]} 25. Rd2 {[%emt 0:08:10]} Nf8 {[%emt 0:00:43]} 26. Rxd8 {[%emt 0:02:20]} Rxd8 {[%emt 0:00:01]} 27. bxa5 {[%emt 0:03:17]} bxa5 {[%emt 0:00:01]} 28. Qb3 {[%emt 0:02:45]} Bc6 {[%emt 0:05:32]} 29. Qc4 {[%emt 0:00:54]} Be8 {[%emt 0:00:47]} 30. Qxc7 {[%emt 0:01:07]} Bxa4 {[%emt 0:00:35]} 31. Qxa5 {[%emt 0:00:50]} Be8 {[%emt 0:01:00]} 32. c4 {[%emt 0:05:51]} N8e6 {[%emt 0:00:27]} 33. Nd5 {[%emt 0:00:26]} Nd4 {[%emt 0:00:38]} 34. Nxd4 {[%emt 0:02:39]} exd4 {[%emt 0:00:02]} 35. Bxf4 {[%emt 0:01:28]} gxf4 {[%emt 0:00:06]} 36. Nxf6 {[%emt 0:00:17]} Qxf6 {[%emt 0:00:02]} 37. Qxh5+ {[%emt 0:00:10]} Kg8 {[%emt 0:00:39]} 38. Bd3 {[%emt 0:00:35]} Bd7 {[%emt 0:00:35]} 39. e5 {[%emt 0:00:00]} Qg7 {[%emt 0:00:00]} 40. Qh4 {[%emt 0:00:00]} Ra8 {[%emt 0:00:00]} 41. Qxf4 {[%emt 0:04:58]} Kf8 {[%emt 0:07:20]} 42. Qxd4 {[%emt 0:04:56]} Ra2 {[%emt 0:01:03]} 43. Bf1 {[%emt 0:02:46]} 1-0

[Event "WYCC 2018 G18"]
[Site "Halkidiki"]
[Date "2018.10.29"]
[Round "10"]
[White "Dong, Khanh Linh"]
[Black "Sliwicka, Alicja"]
[Result "0-1"]
[ECO "A05"]
[WhiteElo "1879"]
[BlackElo "2264"]
[Annotator "NA"]
[PlyCount "104"]
[EventDate "2018.10.20"]
[EventType "swiss"]
[EventCountry "GRE"]
[SourceTitle "playchess.com"]
[Source "ChessBase"]
[SourceQuality "1"]
[TimeControl "40/5400+30:1800+30"]

1. Nf3 {[%emt 0:00:00]} Nf6 {[%emt 0:00:00]} 2. c4 {[%emt 0:00:00]} d6 {[%emt 0:01:00]} 3. g3 {[%emt 0:00:45]} Nbd7 {[%emt 0:06:12]} 4. d4 {[%emt 0:01:57]} e5 {[%emt 0:00:23]} 5. Bg2 {[%emt 0:01:46]} Be7 {[%emt 0:00:09]} 6. dxe5 {[%emt 0:00:56]} dxe5 {[%emt 0:00:26]} 7. O-O {[%emt 0:01:29]} O-O {[%emt 0:00:15]} 8. Nc3 {[%emt 0:01:22]} c6 {[%emt 0:00:12]} 9. Qc2 {[%emt 0:02:55]} Qc7 {[%emt 0:02:30]} 10. Rd1 {[%emt 0:09:13]} a5 {[%emt 0:03:37]} 11. b3 {[%emt 0:03:12]} Re8 {[%emt 0:06:58]} 12. Bb2 {[%emt 0:05:53]} Bf8 {[%emt 0:04:21]} 13. Ne4 {[%emt 0:09:27]} Nxe4 {[%emt 0:07:00]} 14. Qxe4 {[%emt 0:00:11]} f6 {[%emt 0:01:18]} 15. Nd2 {[%emt 0:08:15]} Nc5 {[%emt 0:01:39]} 16. Qe3 {[%emt 0:05:43]} Bf5 {[%emt 0:06:24]} 17. Nf3 $15 {[%emt 0:06:57]} Ne4 {[%emt 0:08:55]} 18. Qc1 {[%emt 0:04:00]} Bc5 {[%emt 0:02:06]} 19. e3 {[%emt 0:01:35]} Bg4 {[%emt 0:06:06]} 20. h3 {[%emt 0:05:33]} Bh5 {[%emt 0:01:05]} 21. g4 {[%emt 0:02:14]} Bf7 {[%emt 0:01:45]} 22. Nd2 {[%emt 0:02:14]} Nxd2 {[%emt 0:02:57]} 23. Rxd2 {[%emt 0:00:18]} Bg6 {[%emt 0:05:40]} 24. Ba3 {[%emt 0:02:43]} Bxa3 {[%emt 0:05:31]} 25. Qxa3 {[%emt 0:00:07]} Rad8 {[%emt 0:03:05]} 26. Rad1 {[%emt 0:04:27]} h5 {[%emt 0:01:16]} 27. Qc5 {[%emt 0:04:24]} hxg4 {[%emt 0:00:56]} 28. Bd5+ {[%emt 0:03:58]} Kh8 {[%emt 0:02:04]} 29. hxg4 {[%emt 0:02:23]} e4 {[%emt 0:03:00]} 30. Kg2 {[%emt 0:00:46]} Qe5 {[%emt 0:01:57]} 31. Rh1+ {[%emt 0:06:09]} Bh7 {[%emt 0:00:05]} 32. Rh5 {[%emt 0:00:39]} g5 {[%emt 0:01:03]} 33. Qb6 {[%emt 0:01:58]} cxd5 {[%emt 0:00:57]} 34. cxd5 {[%emt 0:01:00]} Rd7 {[%emt 0:01:14]} 35. Qxa5 {[%emt 0:01:38]} Red8 {[%emt 0:01:24]} 36. Qb5 {[%emt 0:00:36]} Kg7 {[%emt 0:01:24]} 37. Rh1 {[%emt 0:00:56]} Bg6 {[%emt 0:01:07]} 38. a4 {[%emt 0:00:41]} Bf7 {[%emt 0:01:05]} 39. Rhd1 {[%emt 0:00:22]} Rxd5 {[%emt 0:01:44]} 40. Rxd5 {[%emt 0:00:00]} Rxd5 {[%emt 0:00:00]} 41. Rxd5 {[%emt 0:02:48]} Qxd5 {[%emt 0:00:19]} 42. Qb6 {[%emt 0:09:46]} Qxb3 {[%emt 0:00:35]} 43. Qc7 {[%emt 0:00:21]} Qe6 {[%emt 0:00:46]} 44. Qxb7 {[%emt 0:00:11]} Qxg4+ {[%emt 0:00:14]} 45. Kh2 {[%emt 0:00:05]} Qf3 {[%emt 0:01:29]} 46. Qb2 {[%emt 0:01:03]} Be6 {[%emt 0:00:27]} 47. Qb7+ {[%emt 0:01:41]} Kg6 {[%emt 0:00:21]} 48. Qc6 {[%emt 0:01:15]} Qxf2+ {[%emt 0:00:50]} 49. Kh1 {[%emt 0:00:05]} Qf3+ {[%emt 0:00:45]} 50. Kh2 {[%emt 0:00:09]} Qh3+ {[%emt 0:00:53]} 51. Kg1 {[%emt 0:00:05]} Qxe3+ {[%emt 0:00:08]} 52. Kh2 {[%emt 0:00:12]} Bf7 {[%emt 0:01:04]} 0-1

[Event "WYCC 2018 G18"]
[Site "Halkidiki"]
[Date "2018.10.29"]
[Round "10"]
[White "Nemcova, Kamila"]
[Black "Manriquez Abarzua, Maria Belen"]
[Result "1-0"]
[ECO "C50"]
[WhiteElo "1879"]
[BlackElo "1630"]
[Annotator "NA"]
[PlyCount "85"]
[EventDate "2018.10.20"]
[EventType "swiss"]
[EventCountry "GRE"]
[SourceTitle "playchess.com"]
[Source "ChessBase"]
[SourceQuality "1"]
[TimeControl "40/5400+30:1800+30"]

1. e4 {[%emt 0:00:00]} e5 {[%emt 0:00:00]} 2. Nf3 {[%emt 0:00:00]} Nc6 {[%emt 0:00:00]} 3. Bc4 {[%emt 0:00:00]} Bc5 {[%emt 0:00:15]} 4. O-O {[%emt 0:00:10]} Nf6 {[%emt 0:00:16]} 5. d4 {[%emt 0:00:26]} Bxd4 {[%emt 0:11:34]} 6. Nxd4 {[%emt 0:00:35]} Nxd4 {[%emt 0:00:09]} 7. f4 {[%emt 0:00:37]} d6 {[%emt 0:04:10]} 8. fxe5 {[%emt 0:00:31]} dxe5 {[%emt 0:00:30]} 9. Bg5 {[%emt 0:00:33]} Be6 {[%emt 0:14:31]} 10. Na3 {[%emt 0:01:02]} h6 {[%emt 0:02:47]} 11. Bxf6 {[%emt 0:05:20]} gxf6 {[%emt 0:01:16]} 12. c3 {[%emt 0:02:36]} Bxc4 {[%emt 0:03:09]} 13. Nxc4 {[%emt 0:00:14]} Nc6 {[%emt 0:00:05]} 14. Qxd8+ {[%emt 0:06:28]} Rxd8 {[%emt 0:01:17]} 15. Rxf6 {[%emt 0:00:11]} Ke7 {[%emt 0:00:40]} 16. Raf1 {[%emt 0:00:24]} Rh7 {[%emt 0:01:08]} 17. Ne3 {[%emt 0:26:33]} Rf8 {[%emt 0:08:06]} 18. b4 {[%emt 0:09:37]} h5 {[%emt 0:01:58]} 19. Nd5+ {[%emt 0:06:19]} Kd7 {[%emt 0:02:18]} 20. Rd1 {[%emt 0:04:36]} Ne7 {[%emt 0:14:05]} 21. Nb6+ {[%emt 0:10:32]} Ke8 {[%emt 0:00:35]} 22. Na8 {[%emt 0:01:33]} Nd5 23. Rxd5 {[%emt 0:03:17]} Ke7 {[%emt 0:08:44]} 24. Rf5 {[%emt 0:00:47]} Rxa8 {[%emt 0:00:16]} 25. Rfxe5+ {[%emt 0:02:09]} Kf6 {[%emt 0:00:22]} 26. Rxh5 {[%emt 0:04:54]} Rxh5 {[%emt 0:00:28]} 27. Rxh5 {[%emt 0:00:02]} Re8 {[%emt 0:00:10]} 28. Rf5+ {[%emt 0:01:07]} Kg6 {[%emt 0:00:57]} 29. Rf4 {[%emt 0:00:08]} Re5 {[%emt 0:00:19]} 30. Kf2 {[%emt 0:03:10]} f6 {[%emt 0:04:42]} 31. Ke3 {[%emt 0:01:42]} Rg5 {[%emt 0:00:38]} 32. Rf2 {[%emt 0:04:05]} Kf7 {[%emt 0:03:24]} 33. Kf4 {[%emt 0:02:31]} Ke6 {[%emt 0:00:46]} 34. g4 {[%emt 0:00:35]} Kf7 {[%emt 0:01:32]} 35. Rd2 {[%emt 0:00:33]} Ke6 {[%emt 0:00:32]} 36. h4 {[%emt 0:00:40]} Rg8 {[%emt 0:00:15]} 37. h5 {[%emt 0:00:34]} c6 {[%emt 0:00:56]} 38. c4 {[%emt 0:01:08]} a6 {[%emt 0:00:48]} 39. h6 {[%emt 0:01:39]} Rh8 {[%emt 0:02:02]} 40. Rh2 {[%emt 0:00:00]} Rh7 {[%emt 0:00:00]} 41. g5 {[%emt 0:02:23]} fxg5+ {[%emt 0:00:36]} 42. Kxg5 {[%emt 0:00:02]} Kf7 {[%emt 0:00:21]} 43. Rd2 {[%emt 0:00:54]} 1-0

[Event "WYCC 2018 G18"]
[Site "Halkidiki"]
[Date "2018.10.29"]
[Round "10"]
[White "Salimova, Asal"]
[Black "Vanduyfhuys, Daria"]
[Result "1/2-1/2"]
[ECO "D05"]
[WhiteElo "1870"]
[BlackElo "2058"]
[Annotator "NA"]
[PlyCount "136"]
[EventDate "2018.10.20"]
[EventType "swiss"]
[EventCountry "GRE"]
[SourceTitle "playchess.com"]
[Source "ChessBase"]
[SourceQuality "1"]
[TimeControl "40/5400+30:1800+30"]

1. d4 {[%emt 0:00:00]} d5 {[%emt 0:00:00]} 2. e3 {[%emt 0:00:00]} Nf6 {[%emt 0:00:38]} 3. Bd3 {[%emt 0:00:06]} c5 {[%emt 0:01:35]} 4. c3 {[%emt 0:00:09]} Nc6 {[%emt 0:00:32]} 5. f4 {[%emt 0:00:07]} Bg4 {[%emt 0:00:35]} 6. Nf3 {[%emt 0:00:19]} e6 {[%emt 0:00:58]} 7. h3 {[%emt 0:02:16]} Bf5 {[%emt 0:02:55]} 8. g4 {[%emt 0:05:05]} Bxd3 {[%emt 0:01:07]} 9. Qxd3 {[%emt 0:00:06]} Qc7 {[%emt 0:02:20]} 10. O-O {[%emt 0:04:15]} O-O-O {[%emt 0:02:15]} 11. Nbd2 {[%emt 0:01:54]} g5 {[%emt 0:13:37]} 12. Ne5 {[%emt 0:04:37]} Nxe5 {[%emt 0:01:07]} 13. fxe5 {[%emt 0:00:54]} Ne8 {[%emt 0:00:44]} 14. Nf3 {[%emt 0:01:16]} f6 {[%emt 0:08:58]} 15. Kg2 {[%emt 0:00:36]} Bg7 {[%emt 0:05:16]} 16. exf6 {[%emt 0:04:43]} Bxf6 {[%emt 0:03:03]} 17. e4 {[%emt 0:00:04]} h6 {[%emt 0:21:25]} 18. e5 {[%emt 0:02:41]} Bg7 {[%emt 0:01:04]} 19. Bxg5 {[%emt 0:08:49]} hxg5 {[%emt 0:06:13]} 20. Nxg5 {[%emt 0:00:00]} Qe7 {[%emt 0:00:06]} 21. Nf7 {[%emt 0:00:00]} Rh4 {[%emt 0:09:04]} 22. Nxd8 {[%emt 0:00:00]} Kxd8 {[%emt 0:00:05]} 23. Qg6 {[%emt 0:01:00]} Rh6 {[%emt 0:00:37]} 24. Qf7 {[%emt 0:01:01]} Qg5 {[%emt 0:01:55]} 25. Qxb7 {[%emt 0:10:22]} Qd2+ {[%emt 0:00:10]} 26. Rf2 {[%emt 0:00:05]} Qd3 {[%emt 0:00:05]} 27. Qb8+ {[%emt 0:03:39]} Ke7 {[%emt 0:00:11]} 28. Qxa7+ {[%emt 0:00:04]} Kd8 {[%emt 0:00:04]} 29. Qb6+ {[%emt 0:03:09]} Ke7 {[%emt 0:00:07]} 30. Qxc5+ {[%emt 0:00:06]} Kd8 {[%emt 0:00:03]} 31. Qb6+ {[%emt 0:03:36]} Ke7 {[%emt 0:00:07]} 32. Qa7+ {[%emt 0:00:11]} Kd8 {[%emt 0:00:11]} 33. Qa8+ {[%emt 0:00:17]} Ke7 {[%emt 0:00:20]} 34. Qa3+ {[%emt 0:00:04]} Kd8 {[%emt 0:00:06]} 35. c4 {[%emt 0:00:08]} Qxd4 {[%emt 0:06:17]} 36. cxd5 {[%emt 0:00:16]} exd5 {[%emt 0:02:43]} 37. Rc1 {[%emt 0:03:29]} Rb6 {[%emt 0:07:42]} 38. Qc5 {[%emt 0:06:56]} Qxc5 {[%emt 0:02:23]} 39. Rxc5 {[%emt 0:00:01]} Nc7 {[%emt 0:00:10]} 40. Re2 {[%emt 0:00:00]} d4 {[%emt 0:00:00]} 41. h4 {[%emt 0:08:58]} Ne6 {[%emt 0:01:49]} 42. Rd5+ {[%emt 0:00:06]} Ke7 {[%emt 0:00:06]} 43. Kf3 {[%emt 0:00:28]} Rb8 {[%emt 0:00:34]} 44. Rd2 {[%emt 0:01:36]} Rh8 {[%emt 0:01:34]} 45. Kg3 {[%emt 0:00:37]} Ra8 {[%emt 0:00:10]} 46. a3 {[%emt 0:00:11]} Rf8 {[%emt 0:03:04]} 47. Rf2 {[%emt 0:02:26]} Rc8 {[%emt 0:01:06]} 48. Rb5 {[%emt 0:00:54]} Rc5 {[%emt 0:01:48]} 49. Rb7+ {[%emt 0:01:06]} Ke8 {[%emt 0:01:13]} 50. Rff7 {[%emt 0:01:33]} Bxe5+ {[%emt 0:00:32]} 51. Kf3 {[%emt 0:00:20]} Bc7 {[%emt 0:02:35]} 52. Rf5 {[%emt 0:01:49]} Rc1 {[%emt 0:00:28]} 53. Ke2 {[%emt 0:04:24]} Rh1 {[%emt 0:02:55]} 54. Kd3 {[%emt 0:21:36]} Rxh4 {[%emt 0:04:39]} 55. b4 {[%emt 0:03:37]} Rxg4 {[%emt 0:01:36]} 56. Kc4 {[%emt 0:02:30]} Kd7 {[%emt 0:05:07]} 57. Rf6 {[%emt 0:01:33]} Re4 {[%emt 0:04:08]} 58. Ra7 {[%emt 0:02:39]} Kc8 {[%emt 0:02:34]} 59. Ra8+ {[%emt 0:00:28]} Kb7 {[%emt 0:00:02]} 60. Re8 {[%emt 0:00:14]} d3+ {[%emt 0:00:24]} 61. Kxd3 {[%emt 0:03:44]} Nc5+ {[%emt 0:00:39]} 62. bxc5 {[%emt 0:00:04]} Rxe8 {[%emt 0:00:04]} 63. Kc4 {[%emt 0:00:23]} Re4+ {[%emt 0:00:35]} 64. Kb5 {[%emt 0:00:20]} Re5 {[%emt 0:00:24]} 65. a4 {[%emt 0:00:23]} Re1 {[%emt 0:01:14]} 66. Rf7 {[%emt 0:02:14]} Rb1+ {[%emt 0:00:09]} 67. Kc4 {[%emt 0:00:03]} Rc1+ {[%emt 0:00:12]} 68. Kb5 {[%emt 0:00:08]} Rb1+ {[%emt 0:00:08]} 1/2-1/2

[Event "WYCC 2018 G18"]
[Site "Halkidiki"]
[Date "2018.10.29"]
[Round "10"]
[White "Nguyen, Hong Ngoc"]
[Black "Hng, Mei-En Emmanuelle"]
[Result "1/2-1/2"]
[ECO "A61"]
[WhiteElo "1861"]
[BlackElo "2020"]
[Annotator "NA"]
[PlyCount "101"]
[EventDate "2018.10.20"]
[EventType "swiss"]
[EventCountry "GRE"]
[SourceTitle "playchess.com"]
[Source "ChessBase"]
[SourceQuality "1"]
[TimeControl "40/5400+30:1800+30"]

1. d4 {[%emt 0:00:00]} Nf6 {[%emt 0:00:00]} 2. Nf3 {[%emt 0:00:00]} c5 {[%emt 0:00:00]} 3. d5 {[%emt 0:02:25]} e6 {[%emt 0:00:00]} 4. c4 {[%emt 0:02:18]} exd5 {[%emt 0:00:14]} 5. cxd5 {[%emt 0:00:07]} d6 {[%emt 0:00:07]} 6. Nc3 {[%emt 0:00:34]} g6 {[%emt 0:00:32]} 7. e4 {[%emt 0:01:33]} Bg7 {[%emt 0:00:15]} 8. Bd3 {[%emt 0:00:09]} O-O {[%emt 0:01:07]} 9. O-O {[%emt 0:00:15]} Bg4 {[%emt 0:02:48]} 10. h3 {[%emt 0:00:50]} Bxf3 {[%emt 0:00:30]} 11. Qxf3 {[%emt 0:00:09]} Nbd7 {[%emt 0:02:22]} 12. Bf4 {[%emt 0:01:49] A70: Modern Benoni: 6 e4 g6 7 Nf3} (12. Qe2 a6 13. a4 Ne5 14. Bc2 Re8 15. f4 Ned7 16. Qf3 c4 17. Be3 Qa5 18. Rae1 b5 19. axb5 axb5 20. Ne2 b4 21. Bd4 {0-1 (39) Zubritskiy,A (2442)-Khalifman,A (2617) Tallinn 2016}) 12... Ne8 {[%emt 0:06:09]} 13. Qe2 {[%emt 0:06:11]} Ne5 {[%emt 0:04:33]} 14. Bc2 {[%emt 0:00:52]} Nc7 {[%emt 0:06:32]} 15. Be3 $146 {[%emt 0:08:23]} ({Predecessor:} 15. Bh2 Qe7 16. Kh1 b5 17. f4 Nd7 18. Nxb5 Nxb5 19. Qxb5 Rab8 {0-1 (45) Chuc,D (1850)-Vu,P (2093) Ho Chi Minh City 2013}) 15... b5 {[%emt 0:21:36]} 16. Nxb5 {[%emt 0:02:52]} Nxb5 {[%emt 0:00:07]} 17. Qxb5 {[%emt 0:00:07]} Rb8 {[%emt 0:00:02]} 18. Qa4 {[%emt 0:01:06]} Rb4 {[%emt 0:01:25]} 19. Qxa7 {[%emt 0:02:06]} Nc4 {[%emt 0:01:00]} 20. Rae1 $15 {[%emt 0:16:13]} (20. Bc1 $1 $14) 20... Rxb2 {[%emt 0:04:44]} 21. Bb3 {[%emt 0:01:41]} Nxe3 {[%emt 0:03:44]} 22. Rxe3 {[%emt 0:00:09]} Bd4 {[%emt 0:00:15]} 23. Rf3 {[%emt 0:01:40]} Re2 {[%emt 0:00:36]} 24. Qa6 {[%emt 0:05:00]} Rxe4 {[%emt 0:00:43]} 25. Bc4 {[%emt 0:03:21]} Qh4 {[%emt 0:10:09]} 26. Bd3 {[%emt 0:01:39]} Rf4 {[%emt 0:00:36]} 27. Rxf4 {[%emt 0:09:02]} Qxf4 {[%emt 0:00:01]} 28. Qb5 {[%emt 0:00:55]} h5 {[%emt 0:05:58]} 29. Qb1 {[%emt 0:06:21]} Ra8 {[%emt 0:04:50]} 30. Qc2 {[%emt 0:04:47]} Rb8 {[%emt 0:01:46]} 31. Rb1 {[%emt 0:01:35]} Rxb1+ {[%emt 0:02:01]} 32. Qxb1 {[%emt 0:00:05]} Qxf2+ {[%emt 0:00:26]} 33. Kh1 {[%emt 0:00:06]} Qf4 {[%emt 0:04:18]} 34. Qf1 {[%emt 0:00:41]} Qg3 {[%emt 0:03:17]} 35. Qf3 {[%emt 0:00:46]} Qe1+ {[%emt 0:01:00]} 36. Qf1 {[%emt 0:00:10]} Qh4 {[%emt 0:00:12]} 37. a4 {[%emt 0:02:39]} Be5 {[%emt 0:00:31]} 38. a5 {[%emt 0:00:27]} Qg3 {[%emt 0:00:31]} 39. Kg1 {[%emt 0:00:06]} Qh2+ {[%emt 0:02:24]} 40. Kf2 {[%emt 0:00:00]} Qg3+ {[%emt 0:00:00]} 41. Kg1 {[%emt 0:03:54]} Qh2+ {[%emt 0:15:31]} 42. Kf2 {[%emt 0:00:05]} Bd4+ {[%emt 0:00:07]} 43. Ke2 {[%emt 0:00:09]} Qe5+ {[%emt 0:00:09]} 44. Kd1 {[%emt 0:00:09]} Qe8 {[%emt 0:15:19]} 45. Bb5 {[%emt 0:01:37]} Qe3 {[%emt 0:01:04]} 46. Qd3 {[%emt 0:01:01]} Qg1+ {[%emt 0:00:14]} 47. Qf1 {[%emt 0:00:11]} Qe3 {[%emt 0:00:08]} 48. Qd3 {[%emt 0:00:12]} Qg1+ {[%emt 0:00:10]} 49. Qf1 {[%emt 0:00:05]} Qe3 {[%emt 0:00:04]} 50. Qd3 {[%emt 0:00:04]} Qg1+ {[%emt 0:00:11]} 51. Qf1 {[%emt 0:00:05]} 1/2-1/2